Cogmind - Beta 16.1 @@@ ROGUE MODE // 2026.04.27 @ 21:03:20 Player: JovialTruth Result: Destroyed by AZ-GK6(R) with Subdweller Laser Performance ------------- Evolutions (0) 0 Regions Visited (3) 600 Robots Destroyed (17) 85 Value Destroyed (351) 351 Prototype IDs (0) 0 Alien Tech Used (0) 0 Bonus (0) 0 TOTAL SCORE: 1036 Bonus ------- None Cogmind --------- Core Integrity 0/250 Matter 300/300 Energy 160/160 System Corruption 0% Temperature Cool (6) Movement Walking (190) Ox1 Location -10/Subcaves Parts ------- > --- POWER (1) -------- Light Nuclear Core > --- PROPULSION (2) --- Aluminum Leg > --- UTILITY (2) ------ Small Storage Unit Subdweller Optics > --- WEAPON (2) ------- Small Laser > --- INVENTORY (8) ---- Light Ion Engine Light Ion Engine Flight Unit Visual Processing Unit Terrain Scanner Peak State ------------ > --- POWER ------------ Light Nuclear Core > --- PROPULSION ------- Hover Unit Hover Unit > --- UTILITY ---------- Small Storage Unit Terrain Scanner > --- WEAPON ----------- Heavy Assault Rifle Heavy Assault Rifle > --- INVENTORY -------- Light Ion Engine Light Ion Engine Light Treads Light Treads Aluminum Leg Hover Unit Small Laser Small Laser [Rating: 11] Favorites ----------- Power Light Nuclear Core Engine Ion Engine Power Core Light Nuclear Core Propulsion Aluminum Leg Leg Aluminum Leg Hover Unit Hover Unit Flight Unit Flight Unit Utility Small Storage Unit Device Terrain Scanner Storage Small Storage Unit Weapon Small Laser Energy Gun Small Laser Ballistic Gun Heavy Assault Rifle Special Melee Weapon Datajack Build | -11 -10 -10 -10 ------- Run | Yrd Mat Min Sub Slots Evolved . | . . . . Power . | . . . . Propulsion . | . . . . Utility . | . . . . Weapon . | . . . . Parts Attached 17 | 6 8 1 2 Power 2 | 1 1 . . Engine 1 | 1 . . . Core 1 | . 1 . . Reactor . | . . . . Propulsion 7 | 2 3 1 1 Treads . | . . . . Leg 3 | 2 . . 1 Wheel . | . . . . Hover 3 | . 2 1 . Flight 1 | . 1 . . Utility 3 | 1 1 . 1 Device 2 | . 1 . 1 Storage 1 | 1 . . . Processor . | . . . . Hackware . | . . . . Protection . | . . . . Artifact . | . . . . Weapon 5 | 2 3 . . Energy Gun 2 | 2 . . . Energy Cannon . | . . . . Ballistic Gun 2 | . 2 . . Ballistic Cannon . | . . . . Launcher . | . . . . Special Weapon . | . . . . Impact Weapon . | . . . . Slashing Weapon . | . . . . Piercing Weapon . | . . . . Special Melee Weapon 1 | . 1 . . Unidentified Prototypes . | . . . . Parts Lost 8 | . 4 1 3 Power 1 | . 1 . . Propulsion 4 | . 2 . 2 Utility 1 | . . 1 . Weapon 2 | . 1 . 1 Highest Loss Streak 3 | . 3 1 2 To Critical Strikes . | . . . . Average Backups 6 | 2 6 7 5 Power 1 | . 1 2 2 Propulsion 2 | 1 3 2 1 Utility 1 | . . 1 2 Weapon . | . . 2 . Tool/Special . | . . . . Unused Backups 6 | . 2 . 4 Power 2 | . . . 2 Propulsion 2 | . 2 . . Utility 2 | . . . 2 Weapon . | . . . . Tool/Special . | . . . . Average Slot Usage (%) 76 | . 88 57 81 Engine 2 | . 9 . . Core 10 | . 2 14 14 Leg 10 | . 19 . 12 Hover 1 | . 1 1 2 Flight 4 | . 1 13 . Device 12 | . 13 13 12 Storage 14 | . 14 14 14 Energy Gun 14 | . 14 . 25 Ballistic Gun 2 | . 9 . . Peak Build Rating 11 | 6 11 6 9 Average Rating 7 | 4 7 6 8 On Entrance 4 | . 6 6 6 Avg Prop Armor Cover (%) . | . . . . Naked Turns . | . . . . Heaviest Build 17 | 12 17 11 14 Greatest Support 20 | 20 20 12 12 Greatest Overweight (x) 5 | . 5 2 4 Average Overweight (x) . | . . 1 . Largest Inventory Capacity 8 | 8 8 8 8 Average Capacity 7 | 6 8 8 8 Most Carried 8 | 3 8 8 8 Average Carried 6 | 2 6 7 5 Final Capacity 8 | 8 8 8 8 Final Carried 8 | 3 8 8 5 Class Distribution -------------------- 100% | Mutant Dominant Class ---------------- Mutant | -10/Materials Mutant | -10/Mines Mutant | -10/Subcaves Resources | -11 -10 -10 -10 ----------- Run | Yrd Mat Min Sub Matter Collected 487 | 256 140 56 35 Remotely . | . . . . Salvage Created 498 | . 420 . 78 Parts 28 | . 23 . 5 Haulers Intercepted . | . . . . Recyclers Shooed 1 | . 1 . . Parts Field Recycled . | . . . . Retrieved Matter . | . . . . Parts Self-Destructed 4 | . . . 4 Prevented . | . . . . Parts Restored . | . . . . Kills | -11 -10 -10 -10 ------- Run | Yrd Mat Min Sub Combat Hostiles Destroyed 12 | . 9 . 3 Guns 12 | . 9 . 3 Classes Destroyed 6 | . 5 . 1 Worker 1 | . 1 . . Recycler 1 | . 1 . . Watcher 3 | . 3 . . Swarmer 6 | . 4 . 2 Grunt 5 | . 5 . . Subdweller 1 | . . . 1 Best Kill Streak 4 | . 4 . 3 Combat Bots Only 3 | . 3 . 3 Max Kills in Single Turn 2 | . 2 . 1 Gunslinging 1 | . 1 . . Exploded . | . . . . Melee . | . . . . Uniques/NPCs Destroyed . | . . . . Combat | -11 -10 -10 -10 -------- Run | Yrd Mat Min Sub Hostile Shots Fired 114 | . 77 14 23 Missed 36 | . 23 7 6 Hits 78 | . 54 7 17 Projectile 78 | . 54 7 17 Damage Taken 971 | . 613 104 254 Core 259 | . 80 44 135 Absorbed by Shields . | . . . . Core Remaining (%) 100 | 100 . . . Volleys Fired 44 | . 34 . 10 Largest 2 | . 2 . 2 Hottest 80 | . 80 . 80 Shots Fired 84 | . 67 . 17 Gun 84 | . 67 . 17 Cannon . | . . . . Launcher . | . . . . Special . | . . . . Kinetic 40 | . 40 . . Thermal 44 | . 27 . 17 Explosive . | . . . . Electromagnetic . | . . . . Robot Hit Streak 14 | . 14 . 7 Robot Miss Streak 4 | . 4 . 2 Penetration Max . | . . . . Secondary Targets 3 | . 2 . 1 Max Gunslinging Chain 1 | . 1 . 1 Shots Hit Robots 59 | . 47 . 12 Core Hits 26 | . 19 2 5 Critical Kills . | . . . . Critical Parts Destroyed . | . . . . Critical Strikes . | . . . . Melee Attacks 4 | . 4 . . Impact . | . . . . Slashing . | . . . . Piercing . | . . . . Sneak Attacks 2 | . 2 . . Combat Hostiles . | . . . . Follow-up Attacks . | . . . . Damage Inflicted 739 | . 602 7 130 Guns 727 | . 597 . 130 Cannons . | . . . . Explosions . | . . . . Melee . | . . . . Ramming 12 | . 5 7 . Kinetic 361 | . 361 . . Thermal 366 | . 236 . 130 Explosive . | . . . . Electromagnetic . | . . . . Impact . | . . . . Slashing . | . . . . Piercing . | . . . . Highest Corruption . | . . . . Average Corruption . | . . . . Corruption Purged . | . . . . Corruption Blocked . | . . . . Overload Shots . | . . . . Overflow Damage . | . . . . Projectiles . | . . . . Explosions . | . . . . Melee . | . . . . Knockbacks . | . . . . Impact . | . . . . Kinetic . | . . . . Secondary . | . . . . Self-Inflicted Damage 5 | . 2 3 . Shots . | . . . . Rammed 4 | . 1 3 . Targets Rammed 4 | . 1 3 . Kicked . | . . . . Crushed . | . . . . Highest Temperature 231 | . 231 . . Average Temperature 87 | . 87 . . Received Heat Transfer 300 | . 204 54 42 Siege Activations . | . . . . Martial Activations . | . . . . Shielding Activations . | . . . . Robots Disrupted . | . . . . Combat Hostiles . | . . . . Robots Corrupted . | . . . . Combat Hostiles . | . . . . Parts Fried . | . . . . Impact Corruptions . | . . . . Robots Melted . | . . . . Combat Hostiles . | . . . . Parts Melted 1 | . 1 . . Heat Transferred 825 | . 525 . 300 Parts Sabotaged . | . . . . Parts Stolen . | . . . . Parts Stripped . | . . . . Power Chain Reactions . | . . . . Alert | -11 -10 -10 -10 ------- Run | Yrd Mat Min Sub Maximum Alert Level . | . . . . Low Security (%) 100 | 100 100 100 . Level 1 . | . . . . Level 2 . | . . . . Level 3 . | . . . . Level 4 . | . . . . Level 5 . | . . . . High Security . | . . . . Max Security . | . . . . Peak Influence 94 | . 94 30 . Initial 20 | . . 20 . Average 12 | . 28 1 . Influence Increases 331 | . 251 30 50 Destroy 0b10 Robot/C 220 | . 180 . 40 Destroy 0b10 Robot/NC 25 | . 25 . . Destroy Leader 46 | . 36 . 10 Successful Hack 9 | . 9 . . Destroy Structure 1 | . 1 . . Lose Combat Pursuer 30 | . . 30 . Influence Decreases 331 | . 198 53 80 Entered New Map 49 | . . 33 16 Time Decay 246 | . 172 20 54 Lost Part 36 | . 26 . 10 Squads Dispatched 1 | . 1 . . Investigation 1 | . 1 . . Extermination . | . . . . Reinforcement . | . . . . Assault . | . . . . Garrison . | . . . . Intercept . | . . . . Searches Triggered . | . . . . Construction Impeded . | . . . . Haulers Reinforced . | . . . . Active Scanning Responses . | . . . . Cargo Convoy Interrupts . | . . . . Stealth | -11 -10 -10 -10 --------- Run | Yrd Mat Min Sub Distress Signals 2 | . 2 . . Communications Jammed . | . . . . Distress Signals . | . . . . Times Spotted 22 | . 15 2 5 Peak Tracking Total 7 | . 7 2 3 Tactical Retreats 1 | . . 1 . Traps | -11 -10 -10 -10 ------- Run | Yrd Mat Min Sub Traps Triggered 1 | . 1 . . Indirectly . | . . . . Trap Hack Attempts . | . . . . Triggered . | . . . . Disarmed . | . . . . Reprogrammed . | . . . . Reused . | . . . . Traps Extracted . | . . . . Installed . | . . . . Triggered . | . . . . Machines | -11 -10 -10 -10 ---------- Run | Yrd Mat Min Sub Machines Disabled . | . . . . Max in Single Turn . | . . . . Machines Repaired . | . . . . Machines Dismantled . | . . . . Machines Sabotaged . | . . . . Overloaded Fab Kills . | . . . . Hacking | -11 -10 -10 -10 --------- Run | Yrd Mat Min Sub Machines Accessed 2 | . 2 . . Terminals 2 | . 2 . . Fabricators . | . . . . Repair Stations . | . . . . Recycling Units . | . . . . Scanalyzers . | . . . . Garrison Access . | . . . . Total Hacks 4 | . 4 . . Successful 3 | . 3 . . Failed 1 | . 1 . . Catastrophic . | . . . . Database Lockouts . | . . . . Manual . | . . . . Terminals 4 | . 4 . . Fabricators . | . . . . Repair Stations . | . . . . Recycling Units . | . . . . Scanalyzers . | . . . . Garrison Access . | . . . . Terminal Hacks 3 | . 3 . . Dispatch Records 1 | . 1 . . Recall Reinforcements 1 | . 1 . . Hauler Manifests 1 | . 1 . . Fabricator Hacks . | . . . . Repair Station Hacks . | . . . . Recycling Unit Hacks . | . . . . Scanalyzer . | . . . . Garrison Access Hacks . | . . . . Unauthorized Hacks . | . . . . Terminals . | . . . . Fabricators . | . . . . Repair Stations . | . . . . Recycling Units . | . . . . Scanalyzers . | . . . . Garrison Access . | . . . . Data Cores Recovered . | . . . . Used . | . . . . Hacking Detections 1 | . 1 . . Full Trace Events . | . . . . Feedback Events . | . . . . Feedback Blocked . | . . . . Robot Schematics Acquired . | . . . . Robots Built . | . . . . Authchips . | . . . . Time . | . . . . Total Robot Build Rating . | . . . . Part Schematics Acquired . | . . . . Parts Built . | . . . . Authchips . | . . . . Time . | . . . . Total Part Build Rating . | . . . . Part Studies Acquired . | . . . . Parts Repaired . | . . . . Time . | . . . . Parts Recycled . | . . . . Recycled Matter . | . . . . Retrieved Matter . | . . . . Retrieved Components . | . . . . Parts Scanalyzed . | . . . . Part Schematics Acquired . | . . . . Parts Damaged . | . . . . Bothacking | -11 -10 -10 -10 ------------ Run | Yrd Mat Min Sub Used RIF Installer . | . . . . Robots Hacked 3 | . 3 . . Non-combat 2 | . 2 . . Combat 1 | . 1 . . Robot Hacks Applied 3 | . 3 . . parse_system 2 | . 2 . . no_distress 1 | . 1 . . Relay Couplers Released . | . . . . Fabnet Peak Effective % . | . . . . Robots Rewired . | . . . . Allies Hacked . | . . . . Hacks Repelled . | . . . . Allies | -11 -10 -10 -10 -------- Run | Yrd Mat Min Sub Total Allies . | . . . . Largest Group . | . . . . Highest-Rated Group . | . . . . Highest-Rated Ally . | . . . . Total Orders . | . . . . Ally Attacks . | . . . . Total Damage . | . . . . Kills . | . . . . Allies Corrupted . | . . . . Allies Melted . | . . . . Intel | -11 -10 -10 -10 ------- Run | Yrd Mat Min Sub Active Infowar (turns) 1725 | . 504 530 691 Optics 691 | . . . 691 Terrain 1034 | . 504 530 . Robot Analysis Total . | . . . . Derelict Logs Recovered 2 | . . 2 . Drone Launches . | . . . . Drone Recoveries . | . . . . Exploration | -11 -10 -10 -10 ------------- Run | Yrd Mat Min Sub Turns Passed 2010 | 150 521 567 772 Spaces Moved 1162 | 121 270 323 448 Core 44 | 9 27 . 8 Treads . | . . . . Legs 679 | 112 213 . 354 Wheels . | . . . . Hover 154 | . 8 60 86 Flight 285 | . 22 263 . Fastest Speed 50 | 50 116 56 56 Average Speed 156 | 114 139 173 165 Slowest Speed 300 | 120 300 200 250 Overloaded Moves . | . . . . Propulsion Burnouts . | . . . . Robots Hopped . | . . . . Potential Cave-ins . | . . . . Cave-ins Triggered . | . . . . Exploration Rate (%) 36 | 5 41 70 30 Regions Visited 3 Branch Regions 2 Pre-discovered Areas 1 | . . 1 . Known Exits Taken . | . . . . Unknown Exits Taken 3 | 1 1 1 . Scrap Searched 1 | . . 1 . Spaces Dug . | . . . . Terrain Destroyed . | . . . . Melee . | . . . . Projectile . | . . . . AOE . | . . . . Terrain Rammed . | . . . . Walls Destroyed . | . . . . Machines Disabled . | . . . . Actions | -11 -10 -10 -10 --------- Run | Yrd Mat Min Sub Total 1264 | 129 345 328 462 Wait 15 | . 15 . . Move 1159 | 120 269 322 448 Hop . | . . . . Pick Up 11 | 3 7 1 . Fast Attach 12 | 6 5 . 1 Attach 5 | . 1 1 3 Detach 1 | . 1 . . Swap 4 | . 3 1 . Drop 5 | . 5 . . Fire 44 | . 34 . 10 Melee 4 | . 4 . . Ram 4 | . 1 3 . Kick . | . . . . Crush . | . . . . Escape Stasis . | . . . . Rewire . | . . . . Trap . | . . . . Miscellaneous . | . . . . Route ------- -11/Scrapyard -10/Materials -10/Mines -10/Subcaves History --------- Turn | Location | Event 5 | -11/Scrapyard | Discovered new exit (range 16) 151 | -11/Scrapyard | Entered Materials 323 | -10/Materials | Build established: Mutant 549 | -10/Materials | Lost 3 parts (1p2n) 632 | -10/Materials | Discovered new exit (range 14) 672 | -10/Materials | Entered Mines 912 | -10/Mines | Learned 4 Materials zone layouts 1052 | -10/Mines | Discovered new exit (range 5) 1239 | -10/Mines | Entered Subcaves 1240 | -10/Subcaves | Approached by a straggling Scientist 1241 | -10/Subcaves | A swath of the cavern ceiling suddenly collapsed 1287 | -10/Subcaves | Core integrity fell below 50% 1984 | -10/Subcaves | Ambushed by Subdwellers from Twisted Machinery 2006 | -10/Subcaves | Core integrity fell below 20% 2011 | -10/Subcaves | Destroyed by AZ-GK6(R) with Subdweller Laser Last Messages --------------- A swath of the cavern ceiling suddenly collapses. 01286_ Hover Unit destroyed. 01289_ S-10 Pest destroyed. 01289_ Switching to secondary target: S-10 Pest. 01291_ Subatomizers dissect the Flight Unit. 01298_ S-10 Pest destroyed. 01301_ Flight Unit fries itself beyond repair. 01301_ Acquired 14 matter. 01302_ Subatomizers dissect the Flight Unit. 01303_ Lgt. Assault Rifle fries itself beyond repair. 01306_ Flight Unit fries itself beyond repair. 01307_ Hover Unit destroyed. 01309_ Q0-E80(R) destroyed. 01314_ Acquired 1 matter. 01315_ Lgt. Assault Rifle fries itself beyond repair. 01320_ Acquired Sub. Optics. 01321_ Acquired 10 matter. 01798_ 5D-UVS(u) builds Twisted Machinery. 01984_ 0T-ADL(R) emerges from the Twisted Machinery. 01984_ Sml. Laser destroyed. Map ----- +----------------------------------------------------+ | ?????????????????????????????????????????????????? | | ?????????????????????????????????????????????????? | | ???????????????????????????????###???????????????? | | ???????????????????????????????# ##??????????????? | | ???????????????????????????????# ##?????????????? | | ??????????????????????????????## #????????#####? | | ?????????????????????????????## #????##### #? | | ????????????????????????????## ###### ## | | ???????????????????????????## | | ???????????????????????????# | | ???????????????????????????# ### | | ???????????????????????????## ### ## ## | | ??????????"#####????????????## ## ######## | | ?????????"""""" #????????????##### ## ##???#### | | ??????????" " ??????????????# ## ##????# | | ??????????"""" ?????????????# #????# | | ????????? """" #????????????# #????#### | | ?????????"""" #???###????## ##???????## | | ???????????# #### ###?## ##?????????# | | ????????????# ### ##??????????# | | ??????????### #???????????# | | ????????? """ ###??????????? | | ?????????"""" ###????????????# | | ?????????" "" ##RR ##??????????????## | | ??????? " ?# #### #?????????# | | ??????# ??# @ #??????????# | | ??????# ??# ##??????????# | | ??????# ???## ####???????????? | | ??????## ????## ## ##??????????????? | | ???????## ??????#########???????????????? | | ????????# ### ??????????????????????????????? | | ????????# #??#???????????????????????????????? | | ???????? #???????????????????????????????????? | | ???????? #????????????????????????????????????? | | ???????? ##?????????????????????????????????????? | | ?????????????????????????????????????????????????? | | ?????????????????????????????????????????????????? | | ?????????????????????????????????????????????????? | | ?????????????????????????????????????????????????? | | ?????????????????????????????????????????????????? | | ?????????????????????????????????????????????????? | | ?????????????????????????????????????????????????? | | ?????????????????????????????????????????????????? | | ?????????????????????????????????????????????????? | | ?????????????????????????????????????????????????? | | ?????????????????????????????????????????????????? | | ?????????????????????????????????????????????????? | | ?????????????????????????????????????????????????? | | ?????????????????????????????????????????????????? | | ?????????????????????????????????????????????????? | +----------------------------------------------------+ Best States ------------- Heat Dissipation 25 Energy Generation 14 Energy Capacity 250 Matter Stores 300 Matter Capacity 300 Sight Range 21 Terrain Scan Range 14 Terrain Scan Density 10 Evasion (%) 55 Item Schematics ----------------- None Robot Schematics ------------------ None Fabricated ------------ Nothing Repaired ---------- Nothing Studied --------- None Alien Tech Used ----------------- None Achievements -------------- Junior Dev Shopping List Challenges ------------ None Game ------ Seed PortableParticleJets Manual? 0 Play Time 00:19:59 Cumulative 4.7 hours Start 2026.04.27 @ 20:41:56 End 2026.04.27 @ 21:03:20 Sessions 1 Manual Loads 0 Difficulty Rogue Special Mode None Game No. 6 Rogue 6 Adventurer 0 Explorer 0 Win Type - Total 0 Types 0/0/0/0/0/0/0/0/0/0 Lore% 1 Gallery% 5 Achievement% 6 Wizard Run 0 Options --------- Layout 0 ASCII 1 Keyboard 1 Movement Vi Keybinds 0 Fullscreen 1 Font 36/X11++ Map View 76x50 Zoom Use 0% Tactical HUD 1 Map Filters NONE Filters NONE Steam 1 RUN: 2f1b9482-77a6-4476-bb5c-0a80db5c1c47